bitfinex/quotes_BTCUSD_20251214
["timestamp","ask_amount","ask_price","bid_price","bid_amount"]
[1765751620099,0.20375663,88241.0,88240.0,0.00138621]
[1765751620631,0.073349,88241.0,88240.0,0.00138621]
[1765751620836,0.27728487,88241.0,88240.0,0.00138621]
[1765751621088,0.29740487,88241.0,88240.0,0.00138621]
[1765751621479,0.4097725,88241.0,88240.0,0.00138621]
[1765751623546,0.7004725,88241.0,88240.0,0.00138621]
[1765751623963,0.7004725,88241.0,88213.0,0.01133619]
[1765751623964,0.01133568,88217.0,88213.0,0.01133619]
[1765751624121,0.01804,88216.0,88213.0,0.01150749]
[1765751624329,0.0196,88214.0,88213.0,0.0001713]
[1765751625208,0.001,88217.0,88214.0,0.23805744]
[1765751625454,0.001,88217.0,88216.0,0.13547772]
[1765751625665,0.001,88217.0,88216.0,0.16909772]
[1765751625666,0.01904,88217.0,88216.0,0.16909772]
[1765751625865,0.01904,88217.0,88216.0,0.1702723]
[1765751625997,0.002,88217.0,88216.0,0.17105634]
[1765751626199,0.001,88217.0,88216.0,0.17105634]
[1765751626401,0.01804,88218.0,88217.0,0.22671367]
[1765751626584,0.01133349,88234.0,88231.0,0.01133388]
[1765751626791,0.01804,88233.0,88231.0,0.01133388]
[1765751627399,0.01804,88233.0,88229.0,0.01133414]
[1765751627655,0.01804,88233.0,88231.0,0.001]
[1765751628242,0.01804,88233.0,88232.0,0.22667512]
[1765751628559,0.001,88233.0,88232.0,0.22667512]
[1765751628912,0.001,88233.0,88232.0,0.39483083]
[1765751629245,0.002,88233.0,88232.0,0.39483083]
[1765751629445,0.001,88233.0,88232.0,0.39483083]
[1765751629845,0.01133016,88260.0,88254.0,0.01133093]
[1765751630035,0.02937028,88259.0,88254.0,0.01133093]
[1765751630408,0.01804,88258.0,88255.0,0.23794463]
[1765751630935,0.01842597,88258.0,88255.0,0.23794463]
[1765751631139,0.00038597,88258.0,88257.0,0.02223]
[1765751631344,0.01842597,88258.0,88257.0,0.05585]
[1765751631777,0.02042597,88258.0,88257.0,0.05585]
[1765751631985,0.00238597,88258.0,88257.0,0.16815571]
[1765751632749,0.00538597,88258.0,88257.0,0.05685]
[1765751632863,0.00238597,88258.0,88257.0,0.05585]
[1765751633079,0.00038597,88258.0,88257.0,0.05585]
[1765751633322,0.00438597,88258.0,88257.0,0.02423]
[1765751633528,0.00338597,88258.0,88257.0,0.001]
[1765751633922,0.00138597,88258.0,88257.0,0.002]
[1765751634327,0.00238597,88258.0,88257.0,0.005]
[1765751634577,0.04045884,88258.0,88257.0,0.005]
[1765751634782,0.05823497,88258.0,88257.0,0.002]
[1765751634983,0.05823497,88258.0,88235.0,0.01133337]
[1765751634984,0.01133234,88243.0,88239.0,0.01133285]
[1765751635188,0.0113326,88241.0,88236.0,0.01133324]
[1765751635375,0.01804,88242.0,88239.0,0.01133285]
[1765751635571,0.01804,88242.0,88240.0,0.22665457]
[1765751636548,0.02004,88242.0,88240.0,0.22665457]
[1765751636782,0.01804,88242.0,88239.0,0.01133285]
[1765751637154,0.02937247,88242.0,88237.0,0.01133311]
[1765751637356,0.02937247,88242.0,88239.0,0.01133285]
[1765751637659,0.03137247,88242.0,88240.0,0.001]
[1765751638017,0.02937247,88242.0,88239.0,0.01133285]
[1765751638221,0.01133298,88238.0,88232.0,0.01133375]
[1765751638374,0.23799269,88238.0,88237.0,0.001]
[1765751639399,0.23899269,88238.0,88237.0,0.001]
[1765751639630,0.01133298,88238.0,88234.0,0.01133349]
[1765751640035,0.01233298,88238.0,88237.0,0.001]
[1765751640927,0.01333298,88238.0,88237.0,0.001]
[1765751641110,0.01233298,88238.0,88235.0,0.01133337]
[1765751641308,0.01133298,88238.0,88235.0,0.01133337]
[1765751641531,0.01233298,88238.0,88235.0,0.01133337]
[1765751641735,0.01133298,88238.0,88235.0,0.01133337]
[1765751641943,0.12978763,88236.0,88223.0,0.22669616]
[1765751642143,0.01729,88237.0,88205.0,0.01619]
[1765751642144,0.02527,88220.0,88218.0,0.01133555]
[1765751642352,0.01133568,88217.0,88208.0,0.22673605]
[1765751642519,0.01804,88219.0,88206.0,0.01133709]
[1765751642520,0.01133645,88211.0,88206.0,0.01133709]
[1765751643231,0.01133658,88210.0,88207.0,0.01133696]
[1765751643654,0.01133658,88210.0,88208.0,0.002]
[1765751644035,0.01703,88209.0,88206.0,0.01150839]
[1765751644234,0.01703,88207.0,88206.0,0.0001713]
[1765751644739,0.03393,88207.0,88206.0,0.0001713]
[1765751644967,0.14629763,88207.0,88206.0,0.0001713]
[1765751645686,0.14729763,88207.0,88206.0,0.0011713]
[1765751645901,0.14629763,88207.0,88206.0,0.0001713]
[1765751646092,0.14629763,88207.0,88206.0,0.0021713]
[1765751646304,0.15029763,88207.0,88206.0,0.0031713]
[1765751646521,0.15029763,88207.0,88206.0,0.0011713]
[1765751646761,0.32863,88207.0,88206.0,0.0011713]
[1765751646978,0.44499763,88207.0,88206.0,0.0021713]
[1765751648076,0.4466105,88207.0,88206.0,0.0021713]
[1765751648712,0.49662889,88207.0,88206.0,1.3e-06]
[1765751649422,0.49662889,88207.0,88188.0,0.01133941]
[1765751649709,0.11236763,88189.0,88188.0,0.0114553]
[1765751649847,0.14669763,88189.0,88188.0,0.0114553]
[1765751650047,0.12865763,88189.0,88188.0,0.0114553]
[1765751650253,0.03433,88189.0,88188.0,0.0114553]
[1765751650463,0.03433,88189.0,88188.0,0.00011589]
[1765751650664,0.03433,88189.0,88188.0,0.00111589]
[1765751651553,0.03633,88189.0,88188.0,0.00211589]
[1765751652005,0.03633,88189.0,88188.0,0.00111589]
[1765751652221,0.03733,88189.0,88188.0,0.00111589]
[1765751653165,0.05311,88189.0,88188.0,0.00111589]
[1765751653610,0.16547763,88189.0,88188.0,0.00111589]
[1765751654885,0.01929,88189.0,88188.0,0.00111589]
[1765751655100,0.003,88189.0,88188.0,0.00111589]
[1765751655334,0.02104,88189.0,88188.0,0.00111589]
[1765751655544,0.003,88189.0,88188.0,0.02215589]
[1765751655774,0.003,88189.0,88188.0,0.05327589]
[1765751656214,0.02104,88189.0,88188.0,0.05327589]
[1765751656945,0.02104,88189.0,88188.0,0.00111589]
[1765751657576,0.02104,88189.0,88188.0,0.02215589]
[1765751657777,0.02104,88189.0,88188.0,0.05327589]
[1765751658840,0.003,88189.0,88188.0,0.05327589]
[1765751659053,0.02104,88189.0,88188.0,0.05327589]
[1765751659473,0.003,88189.0,88188.0,0.05327589]
[1765751659910,0.02104,88189.0,88188.0,0.05327589]
[1765751660360,0.003,88189.0,88188.0,0.45741554]
[1765751660580,0.003,88189.0,88188.0,0.4562816]
[1765751661059,0.002,88189.0,88188.0,0.4562816]
[1765751661297,0.01804,88193.0,88188.0,0.4562816]
[1765751661298,0.01804,88193.0,88192.0,0.11230571]
[1765751661517,0.01804,88193.0,88192.0,0.36012364]
[1765751661757,0.01804,88193.0,88192.0,0.39124364]
[1765751662632,0.01904,88193.0,88192.0,0.39124364]
[1765751663089,0.02004,88193.0,88192.0,0.39224364]
[1765751664011,0.02004,88193.0,88192.0,0.22777793]
[1765751664418,0.02004,88193.0,88192.0,0.27993793]
[1765751665822,0.02004,88193.0,88192.0,0.26493793]
[1765751668242,0.002,88193.0,88192.0,0.26493793]
[1765751668602,0.002,88193.0,88192.0,0.37724364]
[1765751669858,0.002,88193.0,88192.0,0.26493793]
[1765751670054,0.002,88193.0,88192.0,0.37724364]
[1765751670296,0.001,88193.0,88192.0,0.37624364]
[1765751670689,0.002,88193.0,88192.0,0.37824364]
[1765751671459,0.001,88193.0,88192.0,0.37824364]
[1765751671885,0.002,88193.0,88192.0,0.37924364]
[1765751673468,0.002,88193.0,88192.0,0.39728364]
[1765751678805,0.002,88193.0,88192.0,0.68798364]
[1765751680661,0.001,88193.0,88192.0,0.73760203]
[1765751680863,0.002,88193.0,88192.0,0.62729632]
[1765751681266,0.002,88193.0,88192.0,0.62529632]
[1765751681509,0.002,88193.0,88192.0,0.57527793]
[1765751681510,0.001,88193.0,88192.0,0.57527793]
[1765751681713,0.002,88193.0,88192.0,0.57827793]
[1765751685976,0.002,88193.0,88192.0,0.57767793]
[1765751689245,0.002,88193.0,88192.0,0.69092565]
[1765751689466,0.002,88193.0,88192.0,0.23481793]
[1765751689679,0.002,88193.0,88192.0,0.21677793]
[1765751690613,0.002,88193.0,88192.0,0.26734793]
[1765751691527,0.002,88193.0,88192.0,0.23657793]
[1765751691891,0.02,88193.0,88192.0,0.23657793]
[1765751692117,0.02,88193.0,88192.0,0.21677793]
[1765751693336,0.02,88193.0,88192.0,0.23657793]
[1765751693520,0.02,88193.0,88192.0,0.26734793]
[1765751695732,0.02,88193.0,88192.0,0.23657793]
[1765751695958,0.02,88193.0,88192.0,0.26734793]
[1765751696153,0.02,88193.0,88192.0,0.23657793]
[1765751696392,0.02,88193.0,88192.0,0.21677793]
[1765751697146,0.018,88193.0,88192.0,0.21177793]
[1765751697349,0.021,88193.0,88192.0,0.21277793]
[1765751697549,0.005,88193.0,88192.0,0.25992793]
[1765751697950,0.00347403,88193.0,88192.0,0.25992793]
[1765751701799,0.00347403,88193.0,88192.0,0.23313793]
[1765751702261,0.00347403,88193.0,88192.0,0.25992793]
[1765751703780,0.00347403,88193.0,88192.0,0.37223364]
[1765751704421,0.01133542,88219.0,88215.0,0.01133594]
[1765751704637,0.01133542,88219.0,88212.0,0.01133632]
[1765751704638,0.25604665,88218.0,88212.0,0.01133632]
[1765751704842,0.01133568,88217.0,88213.0,0.25277988]
[1765751705322,0.01477581,88216.0,88212.0,0.01133632]
[1765751705761,0.01477581,88216.0,88213.0,0.01133619]
[1765751706174,0.01133581,88216.0,88212.0,0.00011589]
[1765751706407,0.01133594,88215.0,88212.0,0.01145221]
[1765751706836,0.01133594,88215.0,88212.0,0.01245221]
[1765751707217,0.01133594,88215.0,88213.0,0.001]
[1765751707440,0.01133594,88215.0,88212.0,0.01145221]
[1765751707645,0.003,88215.0,88212.0,0.23917815]
[1765751707859,0.005,88215.0,88212.0,0.24017815]
[1765751708030,0.01433594,88215.0,88212.0,0.00111589]
[1765751708263,0.01594881,88215.0,88212.0,0.00111589]
[1765751708701,0.01594881,88215.0,88212.0,0.01245221]
[1765751708923,0.00161287,88215.0,88212.0,0.2381778]
[1765751709193,0.00361287,88215.0,88213.0,0.001]
[1765751709435,0.00561287,88215.0,88213.0,0.002]
[1765751709641,0.00161287,88215.0,88212.0,0.23817787]
[1765751709848,0.01294881,88215.0,88212.0,0.01145221]
[1765751710067,0.00361287,88215.0,88214.0,0.01936]
[1765751710277,0.018,88215.0,88214.0,0.01936]
[1765751710488,0.01133375,88232.0,88219.0,0.01133542]
[1765751710703,0.01133414,88229.0,88224.0,0.01133478]
[1765751710912,0.01133439,88227.0,88224.0,0.01133478]
[1765751711091,0.01133439,88227.0,88223.0,0.01133491]
[1765751711770,0.01133439,88227.0,88220.0,0.24142496]
[1765751711771,0.00161287,88232.0,88222.0,0.22669982]
[1765751711957,0.22963881,88247.0,88222.0,0.22669982]
[1765751711958,0.01133234,88243.0,88238.0,0.23799269]
[1765751712161,0.018,88242.0,88240.0,0.23798619]
[1765751712575,0.018,88242.0,88240.0,0.01133272]
[1765751713311,0.01805687,88242.0,88240.0,0.01133272]
[1765751713511,0.01805687,88242.0,88240.0,0.23798665]
[1765751713716,0.02105687,88242.0,88240.0,0.23998665]
[1765751713921,0.02305687,88242.0,88240.0,0.23998665]
[1765751714122,0.02305687,88242.0,88240.0,0.01333272]
[1765751716414,0.018,88241.0,88240.0,0.01333272]
[1765751716616,0.018,88241.0,88240.0,0.002]
[1765751717673,0.018,88241.0,88240.0,0.02136]
[1765751717874,0.018,88241.0,88240.0,0.04815]
[1765751718103,0.018,88241.0,88240.0,0.04715]
[1765751718350,0.018,88241.0,88240.0,0.02036]
[1765751718567,0.03465287,88241.0,88240.0,0.001]
[1765751718993,0.02261287,88241.0,88240.0,0.001]
[1765751719910,0.02561287,88241.0,88240.0,0.002]
[1765751720921,0.00761287,88241.0,88240.0,0.24801457]
[1765751721093,0.02561287,88241.0,88240.0,0.27480457]
[1765751722272,0.02561287,88241.0,88240.0,0.002]
[1765751725172,0.02561287,88241.0,88240.0,0.02136]
[1765751726813,0.02561287,88241.0,88240.0,0.002]
[1765751729764,0.02561287,88241.0,88240.0,0.01985]
[1765751729970,0.02561287,88241.0,88240.0,0.04539]
[1765751733548,0.02561287,88241.0,88240.0,0.002]
[1765751733760,0.02561287,88241.0,88240.0,0.01959]
[1765751733963,0.02561287,88241.0,88240.0,0.04513]
[1765751734164,0.024,88241.0,88240.0,0.04513]
[1765751734615,0.006,88241.0,88240.0,0.04513]
[1765751734819,0.006,88241.0,88240.0,0.16423514]
[1765751735019,0.006,88241.0,88240.0,0.19434284]
[1765751736921,0.006,88241.0,88240.0,0.18754341]
[1765751739365,0.006,88241.0,88240.0,0.20680909]
[1765751741575,0.006,88241.0,88240.0,0.08203738]
[1765751741816,0.006,88241.0,88240.0,0.18754341]
[1765751743365,0.006,88241.0,88240.0,0.19434309]
[1765751743565,0.006,88241.0,88240.0,0.20567582]
[1765751747437,0.003,88241.0,88240.0,0.20467582]
[1765751747648,0.003,88241.0,88240.0,0.49537582]
[1765751747850,0.005,88241.0,88240.0,0.47824341]
[1765751748051,0.005,88241.0,88240.0,0.5282618]
[1765751748455,0.002,88241.0,88240.0,0.5272618]
[1765751748674,0.003,88241.0,88240.0,0.5272618]
[1765751752991,0.003,88241.0,88240.0,0.52029208]
[1765751757489,0.003,88241.0,88240.0,0.52089208]
[1765751758430,0.003,88241.0,88240.0,0.40858637]
[1765751758917,0.003,88241.0,88240.0,0.52089208]
[1765751759815,5.687e-05,88242.0,88241.0,0.6796761]
[1765751760014,5.687e-05,88242.0,88241.0,0.7228261]
[1765751761516,5.687e-05,88242.0,88241.0,0.7234261]
[1765751761669,5.687e-05,88242.0,88241.0,0.7434261]
[1765751761870,9.14e-06,88242.0,88241.0,0.7434261]
[1765751762855,0.00100914,88242.0,88241.0,0.7454261]
[1765751767571,0.00100914,88242.0,88241.0,0.82664316]
[1765751768329,0.00100914,88242.0,88241.0,0.86065211]
[1765751768533,0.00100914,88242.0,88241.0,0.77943505]
[1765751769936,0.05,88257.0,88256.0,0.62961919]
[1765751770140,0.05,88257.0,88256.0,0.64667919]
[1765751770347,0.05,88257.0,88256.0,0.67276919]
[1765751770756,0.05,88257.0,88256.0,0.70677814]
[1765751771546,0.052,88257.0,88256.0,0.70777814]
[1765751771751,0.054,88257.0,88256.0,0.70777814]
[1765751777452,0.03558811,88257.0,88256.0,0.70777814]
[1765751780619,0.03558811,88257.0,88256.0,0.64549082]
[1765751780786,0.03558811,88257.0,88256.0,0.75779653]
[1765751782070,0.03358811,88257.0,88256.0,0.75779653]
[1765751782304,0.03158811,88257.0,88256.0,0.75679653]
[1765751782581,0.03158811,88257.0,88256.0,0.75779653]
[1765751782792,0.03158811,88257.0,88256.0,0.64549082]
[1765751782950,0.03158811,88257.0,88256.0,0.75779653]
[1765751783986,0.03258811,88257.0,88256.0,0.75879653]
[1765751784186,0.04732098,88257.0,88256.0,0.002]
[1765751785461,0.06035098,88257.0,88256.0,0.002]
[1765751786122,0.06035098,88257.0,88256.0,0.001]
[1765751786466,0.06235098,88257.0,88256.0,0.001]
[1765751786886,0.01133272,88240.0,88236.0,0.01133324]
[1765751787088,0.02933272,88240.0,88236.0,0.01144913]
[1765751787504,0.01133285,88239.0,88236.0,0.00011589]
[1765751788114,0.01133285,88239.0,88236.0,0.00211589]
[1765751788584,0.23799094,88239.0,88236.0,0.00011589]
[1765751788786,0.01276,88237.0,88236.0,0.00011589]
[1765751788920,0.01276,88237.0,88236.0,0.00211589]
[1765751789119,0.01276,88237.0,88236.0,0.00411589]
[1765751789394,0.01276,88237.0,88236.0,0.00211589]
[1765751790279,0.01276,88237.0,88236.0,0.00011589]
[1765751790437,0.01276,88237.0,88236.0,0.00111589]
[1765751791064,0.01276,88237.0,88236.0,0.00011589]
[1765751791267,0.01376,88237.0,88236.0,0.00111589]
[1765751791490,0.01476,88237.0,88236.0,0.00111589]
[1765751794513,0.02716,88237.0,88236.0,0.00111589]
[1765751794850,0.13952763,88237.0,88236.0,0.00111589]
[1765751795613,0.13852763,88237.0,88236.0,0.00111589]
[1765751796015,0.14052763,88237.0,88236.0,0.00211589]
[1765751796443,0.13952763,88237.0,88236.0,0.00111589]
[1765751796606,0.15752763,88237.0,88236.0,0.00111589]
[1765751796808,0.15952763,88237.0,88236.0,0.00211589]
[1765751797224,0.15752763,88237.0,88236.0,0.00111589]
[1765751797459,0.16252763,88237.0,88236.0,0.00211589]
[1765751797674,0.16252763,88237.0,88236.0,0.00111589]
[1765751797675,0.16052763,88237.0,88236.0,0.00111589]
[1765751797883,0.16352763,88237.0,88236.0,0.00211589]
[1765751800225,0.14552763,88237.0,88236.0,0.00211589]
[1765751800448,0.16352763,88237.0,88236.0,0.00211589]
[1765751800857,0.14552763,88237.0,88236.0,0.00211589]
[1765751801072,0.16352763,88237.0,88236.0,0.00211589]
[1765751802318,0.14552763,88237.0,88236.0,0.00211589]
[1765751803026,0.16352763,88237.0,88236.0,0.00211589]
[1765751803830,0.39018991,88237.0,88236.0,0.00211589]
[1765751805581,0.7309083,88237.0,88236.0,0.00211589]
[1765751805784,0.76494268,88237.0,88236.0,0.00211589]
[1765751808547,0.25982228,88237.0,88236.0,0.00211589]
[1765751808745,0.27782228,88237.0,88236.0,0.00211589]
[1765751809140,0.25982228,88237.0,88236.0,0.00211589]
[1765751809347,0.27782228,88237.0,88236.0,0.00211589]
[1765751810618,0.33442731,88237.0,88236.0,0.00211589]
[1765751811406,0.27782228,88237.0,88236.0,0.00211589]
[1765751811973,0.33442731,88237.0,88236.0,0.00211589]
[1765751813212,0.27782228,88237.0,88236.0,0.00211589]
[1765751813419,0.39018991,88237.0,88236.0,0.00211589]
[1765751815221,0.68088991,88237.0,88236.0,0.00211589]
[1765751815424,0.70513674,88237.0,88236.0,0.00211589]
[1765751818646,0.33906331,88224.0,88223.0,0.0384865]
[1765751818882,0.49511103,88224.0,88223.0,0.03854337]
[1765751819245,0.49511103,88224.0,88223.0,3.37e-06]
[1765751819697,0.83582942,88224.0,88223.0,3.37e-06]
[1765751819917,0.87461732,88224.0,88223.0,0.00100337]
[1765751820064,0.91879765,88224.0,88223.0,0.00100337]
[1765751820267,0.91879765,88224.0,88175.0,0.01134108]
[1765751820268,0.01134056,88179.0,88175.0,0.01134108]
[1765751820635,0.0186,88176.0,88175.0,0.00011591]
[1765751821113,0.031,88176.0,88175.0,0.00011591]
[1765751821831,0.032,88176.0,88175.0,0.00211591]
[1765751822854,0.033,88176.0,88175.0,0.00311591]
[1765751825662,0.03461287,88176.0,88175.0,0.00311591]
[1765751826224,0.00981287,88176.0,88175.0,0.00311591]
[1765751826437,0.02221287,88176.0,88175.0,0.00311591]
[1765751826856,0.03461287,88176.0,88175.0,0.00311591]
[1765751827744,0.03461287,88176.0,88175.0,0.04289591]
[1765751827745,0.002,88176.0,88175.0,0.04289591]
[1765751827953,0.002,88176.0,88175.0,0.15520162]
[1765751829545,0.002,88176.0,88175.0,0.04289591]
[1765751833352,0.002,88176.0,88175.0,0.06167204]
[1765751833475,0.002,88176.0,88175.0,0.17397775]
[1765751834303,0.001,88176.0,88175.0,0.17297775]
[1765751834552,0.018,88188.0,88175.0,0.1778021]
[1765751834793,0.018,88188.0,88187.0,0.48067422]
[1765751834996,0.01133735,88204.0,88199.0,0.01133799]
[1765751835166,0.018,88203.0,88199.0,0.01133799]
[1765751835740,0.19,88201.0,88200.0,0.01133786]
[1765751836340,0.01133619,88213.0,88200.0,0.01133786]
[1765751836341,0.01753632,88212.0,88206.0,0.23807849]
[1765751836511,0.03677613,88211.0,88206.0,0.23807849]
[1765751836750,0.018,88211.0,88208.0,0.01133684]
[1765751837131,0.018,88211.0,88208.0,0.23807305]
[1765751837542,8.312e-05,88211.0,88210.0,0.02833]
[1765751837743,0.02108312,88211.0,88210.0,0.14063571]
[1765751837942,0.01808312,88211.0,88210.0,0.16402571]
[1765751838143,0.02208312,88211.0,88210.0,0.16402571]
[1765751838564,0.01808312,88211.0,88210.0,0.16402571]
[1765751838922,0.02108312,88211.0,88210.0,0.16502571]
[1765751839326,0.02408312,88211.0,88210.0,0.16502571]
[1765751839550,0.02108312,88211.0,88210.0,0.16502571]
[1765751840005,0.02208312,88211.0,88210.0,0.16702571]
[1765751840148,0.01908312,88211.0,88210.0,0.16602571]
[1765751840563,0.02008312,88211.0,88210.0,0.16802571]
[1765751843164,0.02008312,88211.0,88210.0,0.39475737]
[1765751844775,0.02008312,88211.0,88210.0,0.42878561]
[1765751846926,0.00208312,88211.0,88210.0,0.42878561]
[1765751848452,0.00208312,88211.0,88210.0,0.769504]
[1765751848637,3.12e-06,88211.0,88210.0,0.769504]
[1765751849250,3.12e-06,88211.0,88210.0,0.767504]
[1765751849666,0.00100312,88211.0,88210.0,0.771504]
[1765751849869,0.001,88211.0,88210.0,0.769504]
[1765751850364,0.002,88211.0,88210.0,0.772504]
[1765751852321,0.018,88237.0,88236.0,0.22666485]
[1765751852567,0.018,88237.0,88236.0,0.37859056]
[1765751853072,0.0062,88252.0,88245.0,0.01133208]
[1765751853269,0.018,88251.0,88249.0,0.02259157]
[1765751853445,0.018,88251.0,88249.0,0.01126]
[1765751853644,0.018,88251.0,88250.0,0.03962]
[1765751853844,0.24462632,88251.0,88250.0,0.03962]
[1765751854023,0.24462632,88251.0,88250.0,0.01611]
[1765751854428,0.24462632,88251.0,88250.0,0.03962]
[1765751855524,0.24462632,88251.0,88250.0,0.01611]
[1765751855729,0.24762632,88251.0,88250.0,0.01711]
[1765751856259,0.25062632,88251.0,88250.0,0.01811]
[1765751857008,0.024,88251.0,88250.0,0.01811]
[1765751857380,0.069189,88251.0,88250.0,0.002]
[1765751858188,0.056789,88251.0,88250.0,0.002]
[1765751858394,0.069189,88251.0,88250.0,0.002]
[1765751858820,0.056789,88251.0,88250.0,0.002]
[1765751866196,0.044389,88251.0,88250.0,0.002]
[1765751871564,0.02561287,88251.0,88250.0,0.002]
[1765751871769,0.044389,88251.0,88250.0,0.002]
[1765751872542,0.049389,88251.0,88250.0,0.002]
[1765751875694,0.18655663,88251.0,88250.0,0.002]
[1765751882055,0.4554805,88251.0,88250.0,0.001]
[1765751882238,0.4554805,88251.0,88210.0,0.22673166]
[1765751882239,0.01133568,88217.0,88210.0,0.22673166]
[1765751882436,0.01796,88216.0,88213.0,0.01133619]
[1765751883408,0.02929581,88216.0,88212.0,0.01133632]
[1765751883958,0.03129581,88216.0,88212.0,0.01133632]
[1765751884352,0.02929581,88216.0,88213.0,0.01133619]
[1765751884559,0.03136,88216.0,88213.0,0.23805914]
[1765751884770,0.01896,88216.0,88213.0,0.23805914]
[1765751885200,0.01996,88216.0,88213.0,0.23805914]
[1765751885668,0.01896,88216.0,88213.0,0.23805914]
[1765751886226,0.01796,88216.0,88213.0,0.23805914]
[1765751886430,0.01996,88216.0,88213.0,0.23905914]
[1765751886884,0.0124,88214.0,88213.0,0.001]
[1765751887011,0.01401287,88214.0,88213.0,0.002]
[1765751887230,0.02641287,88214.0,88213.0,0.002]
[1765751887438,0.1387805,88214.0,88213.0,0.002]
[1765751887629,0.1387805,88214.0,88213.0,0.001]
[1765751887850,0.35042777,88213.0,88210.0,0.00011591]
[1765751888128,0.0124,88211.0,88210.0,0.00011591]
[1765751888336,0.01401287,88211.0,88210.0,0.00011591]
[1765751888542,0.02641287,88211.0,88210.0,0.00011591]
[1765751888957,0.1387805,88211.0,88210.0,0.00011591]
[1765751889763,0.1397805,88211.0,88210.0,0.00111591]
[1765751889965,0.1387805,88211.0,88210.0,0.00011591]
[1765751890168,0.1387805,88211.0,88210.0,0.00111591]
[1765751890370,0.1417805,88211.0,88210.0,0.00211591]
[1765751890596,0.1417805,88211.0,88210.0,0.00111591]
[1765751890974,0.1437805,88211.0,88210.0,0.00211591]
[1765751891300,0.3787179,88211.0,88210.0,0.00211591]
[1765751891475,0.01133992,88184.0,88181.0,0.01134031]
[1765751891679,0.01796,88183.0,88181.0,8.312e-05]
[1765751891941,0.22680365,88182.0,88181.0,8.312e-05]
[1765751892174,0.23920365,88182.0,88181.0,8.312e-05]
[1765751893486,0.25160365,88182.0,88181.0,8.312e-05]
[1765751893692,0.25260365,88182.0,88181.0,0.00108312]
[1765751893914,0.36497128,88182.0,88181.0,0.00108312]
[1765751894245,0.36497128,88182.0,88181.0,0.00208312]
[1765751894443,0.36697128,88182.0,88181.0,0.00208312]
[1765751896078,0.24220365,88182.0,88181.0,0.00208312]
[1765751897301,0.25460365,88182.0,88181.0,0.00208312]
[1765751897923,0.003,88182.0,88181.0,0.00208312]
[1765751899145,0.0278,88182.0,88181.0,0.00208312]
[1765751900366,0.14016763,88182.0,88181.0,0.00208312]
[1765751902176,0.15894376,88182.0,88181.0,0.00208312]
[1765751903682,0.02096,88182.0,88181.0,0.00208312]
[1765751903827,0.03973613,88182.0,88181.0,0.00208312]
[1765751904880,0.02096,88182.0,88181.0,0.00208312]
[1765751905083,0.05213613,88182.0,88181.0,0.00208312]
[1765751906182,0.02096,88182.0,88181.0,0.00208312]
[1765751906592,0.003,88182.0,88181.0,0.26885934]
[1765751908537,0.01796,88189.0,88188.0,0.22678822]
[1765751908740,0.01796,88189.0,88188.0,0.24237822]
[1765751908937,0.01796,88189.0,88188.0,0.26548822]
[1765751909360,0.22673559,88209.0,88197.0,0.01133825]
[1765751909564,0.03673613,88206.0,88202.0,0.12458533]
[1765751909766,0.04807322,88206.0,88202.0,0.12458533]
[1765751909973,0.23808193,88205.0,88202.0,0.11324772]
[1765751910174,0.01877613,88204.0,88202.0,0.11324772]
[1765751910979,0.01133761,88202.0,88198.0,0.23809982]
[1765751911177,0.01133761,88202.0,88197.0,0.001]
[1765751911178,0.01133773,88201.0,88197.0,0.001]
[1765751911554,0.01133773,88201.0,88197.0,0.002]
[1765751911986,0.01133773,88201.0,88196.0,0.01133838]
[1765751912210,0.01133773,88201.0,88198.0,0.001]
[1765751912602,0.01133773,88201.0,88196.0,0.01133838]
[1765751912603,0.01133773,88201.0,88197.0,0.23810316]
[1765751912778,0.01133773,88201.0,88197.0,0.23910316]
[1765751912984,0.01233773,88201.0,88198.0,0.01133812]
[1765751913583,0.01233773,88201.0,88198.0,0.01233812]
[1765751913986,0.01333773,88201.0,88198.0,0.01233812]
[1765751914612,0.01333773,88201.0,88198.0,0.001]
[1765751914950,0.24009303,88201.0,88198.0,0.001]
[1765751915362,0.23909303,88201.0,88198.0,0.001]
[1765751915516,0.0124,88199.0,88198.0,0.001]
[1765751915970,0.0248,88199.0,88198.0,0.002]
[1765751916172,0.13716763,88199.0,88198.0,0.002]
[1765751916396,0.13716763,88199.0,88198.0,0.001]
[1765751916397,0.0248,88199.0,88198.0,0.001]
[1765751916570,0.01133992,88184.0,88181.0,8.312e-05]
[1765751916770,0.01796,88183.0,88181.0,8.312e-05]
[1765751917101,0.23920365,88182.0,88181.0,8.312e-05]
[1765751917441,0.25160365,88182.0,88181.0,8.312e-05]
[1765751917650,0.70468967,88182.0,88181.0,3.12e-06]
[1765751917829,0.33920987,88167.0,88151.0,0.06421515]
[1765751917964,0.36956987,88167.0,88166.0,0.00031595]
[1765751918165,0.38196987,88167.0,88166.0,0.00031595]
[1765751919642,0.38696987,88167.0,88166.0,0.00231595]
[1765751920249,0.38858274,88167.0,88166.0,0.00231595]
[1765751921148,0.25825511,88167.0,88166.0,0.00231595]
[1765751921354,0.38858274,88167.0,88166.0,0.00231595]
[1765751924081,0.27621511,88167.0,88166.0,0.00231595]
[1765751924367,0.38858274,88167.0,88166.0,0.00231595]
[1765751924908,0.38358274,88167.0,88166.0,0.00031595]
[1765751925108,0.38758274,88167.0,88166.0,0.00131595]
[1765751925327,0.39058274,88167.0,88166.0,0.00231595]
[1765751926944,0.25525511,88167.0,88166.0,0.00231595]
[1765751927166,0.27321511,88167.0,88166.0,0.00231595]
[1765751927353,0.24680224,88167.0,88166.0,0.00231595]
[1765751927897,0.25920224,88167.0,88166.0,0.00231595]
[1765751930900,0.24124224,88167.0,88166.0,0.00231595]
[1765751931085,0.02496,88167.0,88166.0,0.00231595]
[1765751932686,0.02496,88167.0,88166.0,0.04101595]
[1765751933052,0.02196,88167.0,88166.0,0.04001595]
[1765751933817,0.01796,88167.0,88166.0,0.01590595]
[1765751933966,0.01796,88167.0,88166.0,0.00031595]
[1765751934184,0.01896,88167.0,88166.0,0.00131595]
[1765751934402,0.01896,88167.0,88166.0,0.00231595]
[1765751934403,0.01996,88167.0,88166.0,0.00231595]
[1765751934607,0.06353613,88167.0,88166.0,0.00231595]
[1765751934919,0.12185404,88167.0,88166.0,0.00231595]
[1765751935824,0.065149,88167.0,88166.0,0.00231595]
[1765751936094,0.17751663,88167.0,88166.0,0.00231595]
[1765751938439,0.29076435,88167.0,88166.0,0.00231595]